[Event "*** Titled Tuesday Blitz"]
[Site "Chess.com"]
[Date "2019.05.07"]
[Round "2"]
[White "amatatanav"]
[Black "Koksal06"]
[Result "0-1"]
[WhiteElo "2499"]
[BlackElo "2453"]
[TimeControl "180+2"]
[EndTime "13:25:35 PDT"]
[Termination "Koksal06 won by resignation"]

1. e4 {[%clk 0:03:01.9]} 1... e6 {[%clk 0:03:00.7]} 2. d4 {[%clk 0:03:00.9]}
2... d5 {[%clk 0:03:02.6]} 3. Nc3 {[%clk 0:02:57.4]} 3... Bb4 {[%clk 0:03:03]}
4. e5 {[%clk 0:02:58]} 4... Ne7 {[%clk 0:03:03.9]} 5. a3 {[%clk 0:02:45.7]} 5...
Bxc3+ {[%clk 0:03:04.9]} 6. bxc3 {[%clk 0:02:47.6]} 6... c5 {[%clk 0:03:06.7]}
7. Qg4 {[%clk 0:02:46.6]} 7... O-O {[%clk 0:03:07.9]} 8. Bd3 {[%clk 0:02:30.2]}
8... Nbc6 {[%clk 0:03:08.3]} 9. Nf3 {[%clk 0:02:24.2]} 9... Qc7 {[%clk 0:03:09]}
10. O-O {[%clk 0:01:53.2]} 10... Ng6 {[%clk 0:03:00.1]} 11. Re1 {[%clk
0:01:32.8]} 11... c4 {[%clk 0:02:59.7]} 12. Bf1 {[%clk 0:01:30.1]} 12... f6
{[%clk 0:02:50]} 13. Qh5 {[%clk 0:01:22.1]} 13... Qf7 {[%clk 0:01:48.7]} 14.
exf6 {[%clk 0:01:19.5]} 14... Qxf6 {[%clk 0:01:50.6]} 15. a4 {[%clk 0:00:52.1]}
15... e5 {[%clk 0:01:40.2]} 16. Ba3 {[%clk 0:00:46.7]} 16... Rf7 {[%clk
0:00:57.1]} 17. dxe5 {[%clk 0:00:34.4]} 17... Ncxe5 {[%clk 0:00:53.6]} 18. Nxe5
{[%clk 0:00:21.4]} 18... Qxf2+ {[%clk 0:00:54.7]} 19. Kh1 {[%clk 0:00:22.6]}
19... Rf5 {[%clk 0:00:56.6]} 20. Nxg6 {[%clk 0:00:10.4]} 20... Rxh5 {[%clk
0:00:57.7]} 21. Re8+ {[%clk 0:00:10.7]} 21... Kf7 {[%clk 0:00:58.7]} 22. Rf8+
{[%clk 0:00:12]} 22... Kxg6 {[%clk 0:00:59.8]} 23. Rxf2 {[%clk 0:00:13.9]} 23...
Bf5 {[%clk 0:01:00.8]} 24. Rd1 {[%clk 0:00:13]} 24... Be4 {[%clk 0:01:01.6]} 25.
Be2 {[%clk 0:00:13.3]} 25... Rg5 {[%clk 0:01:02.1]} 26. Bf3 {[%clk 0:00:14.5]}
26... Bxf3 {[%clk 0:00:57.4]} 27. Rxf3 {[%clk 0:00:15.3]} 27... Re8 {[%clk
0:00:59.1]} 28. Bc5 {[%clk 0:00:13]} 28... Re2 {[%clk 0:00:59.9]} 29. Rf2 {[%clk
0:00:13.3]} 29... Rge5 {[%clk 0:01:00.4]} 30. Rxe2 {[%clk 0:00:13.1]} 30... Rxe2
{[%clk 0:01:02.3]} 31. Rxd5 {[%clk 0:00:13.9]} 31... Rxc2 {[%clk 0:01:02.3]} 32.
Rd6+ {[%clk 0:00:14.7]} 32... Kf5 {[%clk 0:01:03.2]} 33. Rd7 {[%clk 0:00:16]}
33... b6 {[%clk 0:00:58.6]} 34. Bd4 {[%clk 0:00:16.9]} 34... Rc1+ {[%clk
0:00:58.6]} 35. Bg1 {[%clk 0:00:17.9]} 35... Rxc3 {[%clk 0:00:59.4]} 36. Rxa7
{[%clk 0:00:18.8]} 36... Rb3 {[%clk 0:01:00.5]} 37. Rxg7 {[%clk 0:00:13.1]}
37... c3 {[%clk 0:01:02]} 38. Rc7 {[%clk 0:00:13.8]} 38... Ke4 {[%clk
0:01:02.7]} 39. h4 {[%clk 0:00:13.8]} 39... Kd3 {[%clk 0:01:04]} 40. Rd7+ {[%clk
0:00:14]} 40... Ke2 {[%clk 0:01:04.5]} 41. Re7+ {[%clk 0:00:12.5]} 41... Kd3
{[%clk 0:01:05.6]} 42. Rd7+ {[%clk 0:00:11]} 42... Ke2 {[%clk 0:01:06.9]} 43.
Rc7 {[%clk 0:00:12.1]} 43... Kd1 {[%clk 0:01:06.8]} 44. Be3 {[%clk 0:00:03.5]}
44... c2 {[%clk 0:01:07.8]} 45. Bg5 {[%clk 0:00:04.1]} 45... Ra3 {[%clk
0:01:02]} 46. Rd7+ {[%clk 0:00:04.6]} 46... Ke1 {[%clk 0:01:03]} 47. Re7+ {[%clk
0:00:03.5]} 47... Kd1 {[%clk 0:01:04]} 48. Rd7+ {[%clk 0:00:04.8]} 48... Ke1
{[%clk 0:01:05.4]} 49. Rc7 {[%clk 0:00:06.3]} 49... Kd1 {[%clk 0:01:06.5]} 50.
Kh2 {[%clk 0:00:07]} 50... Rxa4 {[%clk 0:01:07.7]} 51. Rc6 {[%clk 0:00:08]}
51... b5 {[%clk 0:01:08.8]} 52. Rb6 {[%clk 0:00:08.2]} 52... Rg4 {[%clk
0:01:08]} 53. Rd6+ {[%clk 0:00:08.2]} 53... Ke1 {[%clk 0:01:08.5]} 54. Rc6
{[%clk 0:00:09.4]} 54... Rc4 {[%clk 0:01:05.4]} 55. Rb6 {[%clk 0:00:08.8]} 55...
b4 {[%clk 0:01:04.8]} 56. Kh3 {[%clk 0:00:05.8]} 56... Kd1 {[%clk 0:01:03.8]}
57. Rd6+ {[%clk 0:00:05]} 57... Ke2 {[%clk 0:01:05.3]} 58. Re6+ {[%clk
0:00:05.6]} 58... Kd3 {[%clk 0:01:06.1]} 59. Re3+ {[%clk 0:00:04.2]} 59... Kd4
{[%clk 0:01:06.5]} 60. Rb3 {[%clk 0:00:05.2]} 60... Rc3+ {[%clk 0:01:06.9]} 61.
Rxc3 {[%clk 0:00:04.2]} 61... Kxc3 {[%clk 0:01:08.8]} 62. Bf6+ {[%clk
0:00:02.2]} 62... Kd2 {[%clk 0:01:09.1]} 63. Bg5+ {[%clk 0:00:02.3]} 63... Kd1
{[%clk 0:01:10.6]} 64. g4 {[%clk 0:00:03]} 64... c1=Q {[%clk 0:01:11.1]} 65.
Bxc1 {[%clk 0:00:03.8]} 65... Kxc1 {[%clk 0:01:13]} 66. g5 {[%clk 0:00:05.4]}
66... b3 {[%clk 0:01:14.4]} 67. h5 {[%clk 0:00:06.9]} 67... b2 {[%clk 0:01:16]}
68. g6 {[%clk 0:00:08.3]} 68... b1=Q {[%clk 0:01:15.4]} 69. gxh7 {[%clk
0:00:09.5]} 69... Qxh7 {[%clk 0:01:16.1]} 0-1

[Event "*** Titled Tuesday Blitz"]
[Site "Chess.com"]
[Date "2019.05.07"]
[Round "2"]
[White "Storne89"]
[Black "gliglu"]
[Result "0-1"]
[WhiteElo "2617"]
[BlackElo "2631"]
[TimeControl "180+2"]
[EndTime "13:25:38 PDT"]
[Termination "gliglu won by resignation"]

1. e4 {[%clk 0:03:01.9]} 1... c6 {[%clk 0:03:00.3]} 2. d4 {[%clk 0:03:02.9]}
2... d5 {[%clk 0:03:01.3]} 3. e5 {[%clk 0:03:04.2]} 3... c5 {[%clk 0:03:02.4]}
4. dxc5 {[%clk 0:03:04.6]} 4... e6 {[%clk 0:03:03.6]} 5. Nf3 {[%clk 0:03:05.6]}
5... Bxc5 {[%clk 0:03:03.5]} 6. Bd3 {[%clk 0:03:05.1]} 6... Ne7 {[%clk 0:03:00]}
7. O-O {[%clk 0:03:05.5]} 7... Ng6 {[%clk 0:02:55.2]} 8. a3 {[%clk 0:03:05.8]}
8... Nc6 {[%clk 0:02:49.3]} 9. b4 {[%clk 0:03:06.4]} 9... Bb6 {[%clk 0:02:49.9]}
10. Re1 {[%clk 0:03:07.4]} 10... a5 {[%clk 0:02:45.6]} 11. b5 {[%clk 0:03:07.3]}
11... Nce7 {[%clk 0:02:46.5]} 12. Nbd2 {[%clk 0:03:01.8]} 12... Nf4 {[%clk
0:02:45.5]} 13. Nf1 {[%clk 0:03:03]} 13... Nxd3 {[%clk 0:02:43.7]} 14. Qxd3
{[%clk 0:03:04]} 14... Ng6 {[%clk 0:02:38.4]} 15. Be3 {[%clk 0:03:04]} 15... O-O
{[%clk 0:02:30.4]} 16. Ng3 {[%clk 0:03:05]} 16... Bd7 {[%clk 0:02:28.7]} 17.
Bxb6 {[%clk 0:02:54]} 17... Qxb6 {[%clk 0:02:28.7]} 18. Nd4 {[%clk 0:02:55.5]}
18... Rac8 {[%clk 0:02:25.2]} 19. c3 {[%clk 0:02:46.4]} 19... Rc4 {[%clk
0:02:22.4]} 20. Qe3 {[%clk 0:02:37.2]} 20... Rfc8 {[%clk 0:02:14.8]} 21. Nge2
{[%clk 0:02:37.4]} 21... a4 {[%clk 0:02:01.8]} 22. f4 {[%clk 0:02:36.4]} 22...
Qc5 {[%clk 0:01:49.1]} 23. g4 {[%clk 0:02:37.1]} 23... Bxb5 {[%clk 0:01:35.2]}
24. f5 {[%clk 0:02:37.7]} 24... Nf8 {[%clk 0:01:35.9]} 25. f6 {[%clk 0:02:26.7]}
25... Ng6 {[%clk 0:01:30]} 26. fxg7 {[%clk 0:02:27.8]} 26... Be8 {[%clk
0:01:11.8]} 27. h4 {[%clk 0:01:39.2]} 27... Nxh4 {[%clk 0:01:00.6]} 28. Qh3
{[%clk 0:01:39.6]} 28... Ng6 {[%clk 0:00:57.4]} 29. Kf2 {[%clk 0:01:40.9]} 29...
Kxg7 {[%clk 0:00:28.9]} 30. Rh1 {[%clk 0:01:39.7]} 30... Nf8 {[%clk 0:00:29.8]}
31. Qh6+ {[%clk 0:01:29.1]} 31... Kg8 {[%clk 0:00:30.5]} 32. Qe3 {[%clk
0:01:20.2]} 32... Qc7 {[%clk 0:00:28.9]} 33. Rh5 {[%clk 0:01:20.8]} 33... Ng6
{[%clk 0:00:28.8]} 34. Rah1 {[%clk 0:01:20.5]} 34... b5 {[%clk 0:00:19.5]} 35.
Rg5 {[%clk 0:00:38.2]} 35... b4 {[%clk 0:00:20]} 36. axb4 {[%clk 0:00:36.5]}
36... a3 {[%clk 0:00:20.5]} 37. Qh3 {[%clk 0:00:37.7]} 37... Kf8 {[%clk
0:00:12.6]} 38. Qxh7 {[%clk 0:00:35.5]} 38... Rxc3 {[%clk 0:00:10.2]} 39. Rxg6
{[%clk 0:00:34]} 39... Qxe5 {[%clk 0:00:05.5]} 40. Qh8+ {[%clk 0:00:24.8]} 40...
Qxh8 {[%clk 0:00:05.6]} 41. Rxh8+ {[%clk 0:00:26.7]} 41... Ke7 {[%clk
0:00:06.9]} 42. Rgg8 {[%clk 0:00:13]} 42... a2 {[%clk 0:00:07.3]} 43. Rh1 {[%clk
0:00:11.8]} 43... Rc1 {[%clk 0:00:05.9]} 44. Rxc1 {[%clk 0:00:09.1]} 44... Rxc1
{[%clk 0:00:05.7]} 45. Nb3 {[%clk 0:00:10.4]} 45... a1=Q {[%clk 0:00:05]} 46.
Nxa1 {[%clk 0:00:10.8]} 46... Rxa1 {[%clk 0:00:05.9]} 47. Rh8 {[%clk 0:00:10.1]}
47... Rb1 {[%clk 0:00:06.5]} 48. g5 {[%clk 0:00:07.6]} 48... Rxb4 {[%clk
0:00:06.9]} 49. Ng3 {[%clk 0:00:09]} 49... Rf4+ {[%clk 0:00:07.5]} 50. Ke3
{[%clk 0:00:09.6]} 50... e5 {[%clk 0:00:08.5]} 51. Nh5 {[%clk 0:00:08.3]} 51...
d4+ {[%clk 0:00:09.3]} 52. Kd3 {[%clk 0:00:08.6]} 52... Bb5+ {[%clk 0:00:09]}
53. Kd2 {[%clk 0:00:09.4]} 53... Rf2+ {[%clk 0:00:09.9]} 54. Ke1 {[%clk
0:00:10.3]} 54... Re2+ {[%clk 0:00:10.8]} 55. Kd1 {[%clk 0:00:11.3]} 55... d3
{[%clk 0:00:11.8]} 56. Nf6 {[%clk 0:00:12.1]} 56... Ba4+ {[%clk 0:00:12.7]} 57.
Kc1 {[%clk 0:00:12.3]} 57... d2+ {[%clk 0:00:13.8]} 0-1

[Event "*** Titled Tuesday Blitz"]
[Site "Chess.com"]
[Date "2019.05.07"]
[Round "2"]
[White "Orange_Ghost"]
[Black "Oleg_Papayan"]
[Result "0-1"]
[WhiteElo "2655"]
[BlackElo "2542"]
[TimeControl "180+2"]
[EndTime "13:25:41 PDT"]
[Termination "Oleg_Papayan won by resignation"]

1. d4 {[%clk 0:03:01.9]} 1... Nf6 {[%clk 0:03:00.6]} 2. c4 {[%clk 0:03:02.1]}
2... e6 {[%clk 0:03:00.4]} 3. Nc3 {[%clk 0:03:02]} 3... Bb4 {[%clk 0:03:01]} 4.
e3 {[%clk 0:03:03.1]} 4... b6 {[%clk 0:03:01.3]} 5. f3 {[%clk 0:03:02.1]} 5...
O-O {[%clk 0:02:50.3]} 6. e4 {[%clk 0:03:01.7]} 6... d6 {[%clk 0:02:50.5]} 7.
Bd3 {[%clk 0:02:41]} 7... e5 {[%clk 0:02:48.9]} 8. d5 {[%clk 0:02:41.1]} 8...
Bxc3+ {[%clk 0:02:36.5]} 9. bxc3 {[%clk 0:02:43]} 9... Nbd7 {[%clk 0:02:32.2]}
10. g4 {[%clk 0:02:31.8]} 10... Nc5 {[%clk 0:02:32.1]} 11. Be2 {[%clk
0:02:31.5]} 11... Nfxe4 {[%clk 0:02:23.2]} 12. fxe4 {[%clk 0:02:25.2]} 12...
Qh4+ {[%clk 0:02:22.2]} 13. Kd2 {[%clk 0:02:04.5]} 13... Nxe4+ {[%clk
0:02:21.2]} 14. Kc2 {[%clk 0:02:05.2]} 14... f5 {[%clk 0:01:44.5]} 15. Nf3
{[%clk 0:01:49.2]} 15... Qh3 {[%clk 0:01:29.5]} 16. gxf5 {[%clk 0:01:23]} 16...
Nf2 {[%clk 0:01:25.2]} 17. Qf1 {[%clk 0:01:00.2]} 17... Bxf5+ {[%clk 0:01:24.5]}
18. Kb2 {[%clk 0:00:56.3]} 18... Nxh1 {[%clk 0:01:25.3]} 19. Qxh1 {[%clk
0:00:44.9]} 19... Be4 {[%clk 0:01:04.6]} 20. Ng5 {[%clk 0:00:45.4]} 20... Bxh1
{[%clk 0:01:05.5]} 21. Nxh3 {[%clk 0:00:46.4]} 21... Bg2 {[%clk 0:01:05.4]} 22.
Ng1 {[%clk 0:00:43.7]} 22... Rf6 {[%clk 0:00:53.9]} 23. Be3 {[%clk 0:00:40.3]}
23... Raf8 {[%clk 0:00:53.9]} 24. Kc1 {[%clk 0:00:36.3]} 24... h6 {[%clk
0:00:49.6]} 25. Kd2 {[%clk 0:00:37.2]} 25... g5 {[%clk 0:00:47.5]} 26. Bg4
{[%clk 0:00:36.2]} 26... Kg7 {[%clk 0:00:47]} 27. Ne2 {[%clk 0:00:37.1]} 27...
Bf3 {[%clk 0:00:43.1]} 28. h3 {[%clk 0:00:34.3]} 28... Kg6 {[%clk 0:00:41.3]}
29. Rg1 {[%clk 0:00:33.8]} 29... Bxg4 {[%clk 0:00:31.2]} 30. hxg4 {[%clk
0:00:32.9]} 30... Rf1 {[%clk 0:00:30.4]} 31. Rg2 {[%clk 0:00:21.4]} 31... R8f3
{[%clk 0:00:29.4]} 32. Kd3 {[%clk 0:00:18.2]} 32... Rd1+ {[%clk 0:00:27.3]} 33.
Ke4 {[%clk 0:00:18]} 33... Rff1 {[%clk 0:00:22.8]} 34. Ng3 {[%clk 0:00:18]}
34... Rfe1 {[%clk 0:00:15]} 35. Nf5 {[%clk 0:00:17.8]} 35... Rh1 {[%clk
0:00:13.4]} 36. Rf2 {[%clk 0:00:17]} 36... Rdf1 {[%clk 0:00:13.8]} 37. Rg2
{[%clk 0:00:12.9]} 37... Rd1 {[%clk 0:00:14.8]} 38. Ne7+ {[%clk 0:00:13.6]}
38... Kf7 {[%clk 0:00:15.4]} 39. Nf5 {[%clk 0:00:15.5]} 39... Kg6 {[%clk
0:00:16.7]} 40. Ng3 {[%clk 0:00:16.5]} 40... Rhe1 {[%clk 0:00:15.9]} 41. Rh2
{[%clk 0:00:16.2]} 41... a5 {[%clk 0:00:10.2]} 42. Nf5 {[%clk 0:00:16.6]} 42...
Rh1 {[%clk 0:00:11.5]} 43. Rf2 {[%clk 0:00:16.1]} 43... Rdg1 {[%clk 0:00:11.7]}
44. Ne7+ {[%clk 0:00:15.9]} 44... Kg7 {[%clk 0:00:12.8]} 45. Kf5 {[%clk
0:00:15.1]} 45... Rf1 {[%clk 0:00:13.5]} 46. Ke6 {[%clk 0:00:15.1]} 46... Rxf2
{[%clk 0:00:14.6]} 47. Bxf2 {[%clk 0:00:17]} 47... Rh2 {[%clk 0:00:15.9]} 48.
Be1 {[%clk 0:00:17.1]} 48... Rxa2 {[%clk 0:00:17.4]} 49. Kd7 {[%clk 0:00:17.7]}
49... a4 {[%clk 0:00:19]} 50. Nc6 {[%clk 0:00:16.4]} 50... a3 {[%clk 0:00:20.5]}
51. Nb4 {[%clk 0:00:16.4]} 51... Re2 {[%clk 0:00:21.2]} 52. Kxc7 {[%clk
0:00:13.3]} 52... Rxe1 {[%clk 0:00:21.8]} 53. Kxb6 {[%clk 0:00:14.7]} 53... Rb1
{[%clk 0:00:23.1]} 54. Kc6 {[%clk 0:00:14.7]} 54... Rxb4 {[%clk 0:00:24.2]} 55.
cxb4 {[%clk 0:00:16.6]} 55... a2 {[%clk 0:00:25.6]} 56. b5 {[%clk 0:00:18.5]}
56... a1=Q {[%clk 0:00:26.7]} 57. Kxd6 {[%clk 0:00:20]} 57... e4 {[%clk
0:00:26.8]} 58. b6 {[%clk 0:00:21]} 58... Qf6+ {[%clk 0:00:27.5]} 59. Kc7 {[%clk
0:00:22.2]} 59... Qe7+ {[%clk 0:00:28.3]} 60. Kc6 {[%clk 0:00:23.4]} 60... e3
{[%clk 0:00:28.7]} 61. c5 {[%clk 0:00:24.4]} 61... e2 {[%clk 0:00:29.8]} 62. b7
{[%clk 0:00:26]} 62... Qd8 {[%clk 0:00:29.8]} 63. d6 {[%clk 0:00:22.4]} 63...
e1=Q {[%clk 0:00:30.8]} 64. Kd5 {[%clk 0:00:23.9]} 64... Qh1+ {[%clk 0:00:31.4]}
0-1

[Event "*** Titled Tuesday Blitz"]
[Site "Chess.com"]
[Date "2019.05.07"]
[Round "2"]
[White "stepanosinovsky"]
[Black "valeriocarnicelli"]
[Result "0-1"]
[WhiteElo "2372"]
[BlackElo "2517"]
[TimeControl "180+2"]
[EndTime "13:25:42 PDT"]
[Termination "valeriocarnicelli won on time"]

1. e4 {[%clk 0:03:01.9]} 1... e5 {[%clk 0:03:00.5]} 2. Nf3 {[%clk 0:03:03.3]}
2... Nc6 {[%clk 0:03:01.7]} 3. Bb5 {[%clk 0:03:03.7]} 3... g6 {[%clk 0:03:02.6]}
4. O-O {[%clk 0:03:03.8]} 4... Bg7 {[%clk 0:03:03.3]} 5. c3 {[%clk 0:03:00.6]}
5... a6 {[%clk 0:03:04.2]} 6. Ba4 {[%clk 0:03:01.1]} 6... Nge7 {[%clk
0:03:05.2]} 7. d4 {[%clk 0:02:59.5]} 7... exd4 {[%clk 0:03:07.1]} 8. cxd4 {[%clk
0:03:00.3]} 8... b5 {[%clk 0:03:06.8]} 9. Bb3 {[%clk 0:02:56]} 9... O-O {[%clk
0:03:07.9]} 10. Nc3 {[%clk 0:02:52.4]} 10... d6 {[%clk 0:03:08.5]} 11. h3 {[%clk
0:02:52.6]} 11... Na5 {[%clk 0:03:09.1]} 12. Bc2 {[%clk 0:02:52.9]} 12... c5
{[%clk 0:03:10.2]} 13. Bg5 {[%clk 0:02:43.7]} 13... h6 {[%clk 0:03:06.3]} 14.
Bh4 {[%clk 0:02:44.3]} 14... g5 {[%clk 0:03:03.6]} 15. Bxg5 {[%clk 0:02:23.9]}
15... hxg5 {[%clk 0:03:03.9]} 16. Nxg5 {[%clk 0:02:24.7]} 16... Ng6 {[%clk
0:01:53.4]} 17. Qh5 {[%clk 0:02:22.4]} 17... Re8 {[%clk 0:01:54.6]} 18. e5
{[%clk 0:02:12.4]} 18... dxe5 {[%clk 0:01:43.9]} 19. Bxg6 {[%clk 0:01:43.7]}
19... fxg6 {[%clk 0:01:42.5]} 20. Qh7+ {[%clk 0:01:41.6]} 20... Kf8 {[%clk
0:01:41.6]} 21. Qxg6 {[%clk 0:01:43.5]} 21... Ra7 {[%clk 0:01:30.3]} 22. dxe5
{[%clk 0:01:30.3]} 22... Rxe5 {[%clk 0:01:27.4]} 23. f4 {[%clk 0:01:14.5]} 23...
Rf5 {[%clk 0:00:50.8]} 24. Nce4 {[%clk 0:00:40.8]} 24... Bd4+ {[%clk 0:00:40.1]}
25. Kh1 {[%clk 0:00:37.1]} 25... Rg7 {[%clk 0:00:37.1]} 26. Qh6 {[%clk
0:00:30.6]} 26... Kg8 {[%clk 0:00:34.4]} 27. Rae1 {[%clk 0:00:20]} 27... Nc4
{[%clk 0:00:33.8]} 28. Ne6 {[%clk 0:00:13.9]} 28... Bxe6 {[%clk 0:00:29.1]} 29.
Qxe6+ {[%clk 0:00:15.2]} 29... Rff7 {[%clk 0:00:30]} 30. Ng5 {[%clk 0:00:14.7]}
30... Nd6 {[%clk 0:00:16.1]} 31. Re2 {[%clk 0:00:05.8]} 31... Qe7 {[%clk
0:00:07.4]} 32. Nxf7 {[%clk 0:00:06]} 32... Qxe6 {[%clk 0:00:08.5]} 33. Rxe6
{[%clk 0:00:07.9]} 33... Nxf7 {[%clk 0:00:09.8]} 34. Rfe1 {[%clk 0:00:09.8]}
34... Bxb2 {[%clk 0:00:08.6]} 35. g4 {[%clk 0:00:10.1]} 35... c4 {[%clk
0:00:07.7]} 36. Re8+ {[%clk 0:00:09.8]} 36... Kh7 {[%clk 0:00:08.6]} 37. R1e6
{[%clk 0:00:10.9]} 37... c3 {[%clk 0:00:06.8]} 38. Rc8 {[%clk 0:00:11.5]} 38...
b4 {[%clk 0:00:06.3]} 39. Kg2 {[%clk 0:00:09.8]} 39... a5 {[%clk 0:00:06.5]} 40.
Kf3 {[%clk 0:00:09.9]} 40... a4 {[%clk 0:00:07.7]} 41. g5 {[%clk 0:00:10.8]}
41... b3 {[%clk 0:00:05.4]} 42. axb3 {[%clk 0:00:12.7]} 42... axb3 {[%clk
0:00:07]} 43. h4 {[%clk 0:00:13.7]} 43... c2 {[%clk 0:00:07.6]} 44. h5 {[%clk
0:00:14.9]} 44... Rxg5 {[%clk 0:00:04.9]} 45. fxg5 {[%clk 0:00:16.8]} 45...
Nxg5+ {[%clk 0:00:06.1]} 46. Ke2 {[%clk 0:00:13.9]} 46... Nxe6 {[%clk
0:00:06.9]} 47. Kd2 {[%clk 0:00:13.7]} 47... c1=Q+ {[%clk 0:00:07]} 48. Rxc1
{[%clk 0:00:13.7]} 48... Bxc1+ {[%clk 0:00:08.4]} 49. Kxc1 {[%clk 0:00:15.6]}
49... Nc5 {[%clk 0:00:09.7]} 50. Kb2 {[%clk 0:00:17.3]} 50... Kh6 {[%clk
0:00:11.2]} 51. Kc3 {[%clk 0:00:18.9]} 51... Kxh5 {[%clk 0:00:12.3]} 0-1

[Event "*** Titled Tuesday Blitz"]
[Site "Chess.com"]
[Date "2019.05.07"]
[Round "2"]
[White "PE-TRO"]
[Black "MosheFriedland"]
[Result "1-0"]
[WhiteElo "2800"]
[BlackElo "2421"]
[TimeControl "180+2"]
[EndTime "13:25:42 PDT"]
[Termination "PE-TRO won by resignation"]

1. Nf3 {[%clk 0:03:00.9]} 1... Nf6 {[%clk 0:03:00.5]} 2. c4 {[%clk 0:03:01.9]}
2... c6 {[%clk 0:03:01.2]} 3. g3 {[%clk 0:03:02.9]} 3... d5 {[%clk 0:03:02.3]}
4. b3 {[%clk 0:03:03.7]} 4... Bf5 {[%clk 0:03:03.2]} 5. Bg2 {[%clk 0:03:04.3]}
5... e6 {[%clk 0:03:04.8]} 6. O-O {[%clk 0:03:05.2]} 6... h6 {[%clk 0:03:05.5]}
7. Bb2 {[%clk 0:03:06.3]} 7... Be7 {[%clk 0:03:05.8]} 8. d3 {[%clk 0:03:07.5]}
8... O-O {[%clk 0:03:06.8]} 9. Nbd2 {[%clk 0:03:08.7]} 9... Nbd7 {[%clk
0:03:07.8]} 10. Rc1 {[%clk 0:03:09.1]} 10... Bh7 {[%clk 0:03:08.4]} 11. Rc2
{[%clk 0:03:09.6]} 11... a5 {[%clk 0:03:07.6]} 12. a3 {[%clk 0:03:10.6]} 12...
c5 {[%clk 0:03:02.6]} 13. cxd5 {[%clk 0:03:07.3]} 13... exd5 {[%clk 0:02:59.5]}
14. Ne5 {[%clk 0:02:59.4]} 14... Nxe5 {[%clk 0:02:34.6]} 15. Bxe5 {[%clk
0:02:59.4]} 15... a4 {[%clk 0:02:35.1]} 16. Bxf6 {[%clk 0:02:41]} 16... Bxf6
{[%clk 0:02:29.5]} 17. Rxc5 {[%clk 0:02:38.5]} 17... axb3 {[%clk 0:02:26.4]} 18.
Qxb3 {[%clk 0:02:39.4]} 18... Qe7 {[%clk 0:02:14]} 19. Rxd5 {[%clk 0:02:28]}
19... Qxe2 {[%clk 0:02:09.3]} 20. Ne4 {[%clk 0:02:29]} 20... Bxe4 {[%clk
0:02:08.2]} 21. Bxe4 {[%clk 0:02:30.9]} 21... Qb2 {[%clk 0:01:50]} 22. Rb1
{[%clk 0:02:30.4]} 22... Qxb3 {[%clk 0:01:45.1]} 23. Rxb3 {[%clk 0:02:32.3]}
23... Be7 {[%clk 0:01:46.4]} 24. Rxb7 {[%clk 0:02:28.2]} 24... Bxa3 {[%clk
0:01:40.3]} 25. Rdd7 {[%clk 0:02:29.1]} 25... Bc5 {[%clk 0:01:35.8]} 26. Bd5
{[%clk 0:02:25]} 26... Ra1+ {[%clk 0:01:32.6]} 27. Kg2 {[%clk 0:02:25.2]} 27...
Kh8 {[%clk 0:01:33.7]} 28. Rxf7 {[%clk 0:02:25.5]} 28... Rxf7 {[%clk 0:01:30.8]}
29. Rxf7 {[%clk 0:02:27.4]} 29... Rd1 {[%clk 0:01:28.5]} 30. Bc4 {[%clk
0:02:26.2]} 30... Rd2 {[%clk 0:01:26.4]} 31. h4 {[%clk 0:02:26.7]} 31... Bd4
{[%clk 0:01:18.1]} 32. h5 {[%clk 0:02:23.2]} 32... Kh7 {[%clk 0:01:15.3]} 33.
Rf8 {[%clk 0:02:22.6]} 33... g5 {[%clk 0:01:08.1]} 34. hxg6+ {[%clk 0:02:14.4]}
34... Kxg6 {[%clk 0:01:08.7]} 35. Rf4 {[%clk 0:02:14.3]} 35... Bc5 {[%clk
0:01:01.4]} 36. Bd5 {[%clk 0:02:14.1]} 36... Kg7 {[%clk 0:00:44.7]} 37. Rf7+
{[%clk 0:02:13.1]} 37... Kg6 {[%clk 0:00:43.3]} 38. Rf4 {[%clk 0:02:13.8]} 38...
Kg7 {[%clk 0:00:44.3]} 39. Be4 {[%clk 0:02:14.8]} 39... Bb6 {[%clk 0:00:38.6]}
40. Rf5 {[%clk 0:02:15.4]} 40... Bd4 {[%clk 0:00:37.1]} 41. g4 {[%clk
0:02:16.2]} 41... Bb6 {[%clk 0:00:36.3]} 42. Kg3 {[%clk 0:02:17.2]} 42... Bd4
{[%clk 0:00:34.2]} 43. f4 {[%clk 0:02:16.2]} 43... Bf2+ {[%clk 0:00:34.3]} 44.
Kf3 {[%clk 0:02:15.7]} 44... Bd4 {[%clk 0:00:34.7]} 45. Rd5 {[%clk 0:02:15.9]}
45... Bb6 {[%clk 0:00:33.5]} 46. Rd7+ {[%clk 0:02:16.9]} 46... Kf8 {[%clk
0:00:33.3]} 47. Rd6 {[%clk 0:02:17.8]} 47... Rf2+ {[%clk 0:00:18.2]} 48. Kg3
{[%clk 0:02:18.6]} 48... Bc7 {[%clk 0:00:19.5]} 49. Rf6+ {[%clk 0:02:19.2]}
49... Ke7 {[%clk 0:00:20.4]} 50. Rf5 {[%clk 0:02:08.3]} 50... Rd2 {[%clk
0:00:21.7]} 51. Rh5 {[%clk 0:02:04.6]} 51... Rd1 {[%clk 0:00:19.6]} 52. Rxh6
{[%clk 0:02:04.6]} 52... Rg1+ {[%clk 0:00:20.8]} 53. Bg2 {[%clk 0:01:55]} 53...
Rd1 {[%clk 0:00:17.9]} 54. Rh7+ {[%clk 0:01:55.9]} 54... Kd8 {[%clk 0:00:19.1]}
55. Be4 {[%clk 0:01:56.4]} 55... Rg1+ {[%clk 0:00:19.5]} 56. Bg2 {[%clk
0:01:57.4]} 56... Rd1 {[%clk 0:00:20.4]} 57. Rh8+ {[%clk 0:01:28.9]} 57... Ke7
{[%clk 0:00:21.3]} 58. Rh5 {[%clk 0:01:10.9]} 58... Rxd3+ {[%clk 0:00:21.8]} 59.
Bf3 {[%clk 0:01:11.9]} 59... Rd4 {[%clk 0:00:23.2]} 60. Rf5 {[%clk 0:01:12.6]}
60... Rd2 {[%clk 0:00:23.5]} 61. g5 {[%clk 0:01:13.3]} 61... Ke6 {[%clk
0:00:22.1]} 62. Rf6+ {[%clk 0:01:14.2]} 62... Ke7 {[%clk 0:00:22.6]} 63. Kg4
{[%clk 0:01:15.1]} 63... Rd4 {[%clk 0:00:21.3]} 64. Rf5 {[%clk 0:01:10.3]} 64...
Ke6 {[%clk 0:00:20.4]} 65. g6 {[%clk 0:01:11.5]} 65... Rd7 {[%clk 0:00:18.3]}
66. Bd5+ {[%clk 0:01:06]} 66... Kd6 {[%clk 0:00:13.7]} 67. Bf7 {[%clk 0:01:06]}
1-0